bitfinex-derivatives/quotes_BTCF0:USTF0_20210708
["timestamp","ask_amount","ask_price","bid_price","bid_amount"]
[1625714187745,0.29757544,33191.0,33190.0,5.1366]
[1625714188952,0.48115088,33196.0,33190.0,5.1366]
[1625714189095,0.057,33195.0,33190.0,5.35338]
[1625714189254,0.057,33195.0,33190.0,4.35338]
[1625714189549,0.057,33195.0,33194.0,1.0]
[1625714190300,0.057,33195.0,33194.0,1.001]
[1625714192728,0.48115088,33196.0,33194.0,1.001]
[1625714192890,0.24057544,33200.0,33195.0,0.24057544]
[1625714192891,0.29757544,33200.0,33195.0,0.24057544]
[1625714193007,0.29757544,33200.0,33195.0,1.94294939]
[1625714193315,0.29757544,33200.0,33199.0,1.0]
[1625714193448,0.29757544,33200.0,33199.0,1.25858]
[1625714194653,0.29757544,33200.0,33199.0,1.96157024]
[1625714194798,0.24057544,33200.0,33199.0,1.96157024]
[1625714194956,0.24057544,33200.0,33199.0,2.20214568]
[1625714195121,0.24057544,33200.0,33199.0,3.25662344]
[1625714195263,0.24057544,33200.0,33199.0,2.25662344]
[1625714195411,0.24057544,33200.0,33199.0,3.25662344]
[1625714195622,0.24057544,33200.0,33199.0,3.34652344]
[1625714195848,0.24057544,33200.0,33199.0,3.25662344]
[1625714196448,0.24057544,33200.0,33199.0,3.75662344]
[1625714196751,0.24057544,33200.0,33199.0,4.98802369]
[1625714196898,0.24057544,33200.0,33199.0,5.31949913]
[1625714197198,0.24057544,33200.0,33199.0,4.72859913]
[1625714198323,0.24057544,33200.0,33199.0,3.72859913]
[1625714198624,0.24057544,33200.0,33199.0,4.72859913]
[1625714198925,0.24057544,33200.0,33199.0,6.13746712]
[1625714201928,0.29757544,33200.0,33199.0,5.13746712]
[1625714202075,0.29757544,33200.0,33199.0,4.87888712]
[1625714202226,0.29757544,33200.0,33199.0,2.98886825]
[1625714202376,0.29757544,33200.0,33199.0,1.757468]
[1625714202677,0.29757544,33200.0,33199.0,2.757468]
[1625714202977,0.53815088,33200.0,33199.0,2.757468]
[1625714203127,0.53815088,33200.0,33199.0,1.757468]
[1625714204196,0.53815088,33200.0,33198.0,0.001]
[1625714204197,3.45045988,33200.0,33198.0,0.001]
[1625714204337,2.91177973,33199.0,33198.0,0.001]
[1625714204483,2.96877973,33199.0,33198.0,0.001]
[1625714205843,4.3390271,33199.0,33198.0,0.001]
[1625714206450,2.96877973,33199.0,33198.0,0.001]
[1625714206879,1.7698519,33199.0,33198.0,0.001]
[1625714207181,0.74217501,33199.0,33198.0,2.76715573]
[1625714208383,0.74217501,33199.0,33198.0,1.76715573]
[1625714208833,1.77157582,33199.0,33198.0,0.70746229]
[1625714208982,2.08006582,33199.0,33198.0,0.70746229]
[1625714210033,2.08006582,33199.0,33198.0,0.001]
[1625714210335,2.08006582,33199.0,33198.0,0.70754196]
[1625714210860,2.08006582,33199.0,33198.0,0.001]
[1625714211011,1.77157582,33199.0,33198.0,1.001]
[1625714211315,1.77157582,33199.0,33198.0,1.70749557]
[1625714211462,1.77157582,33199.0,33198.0,0.70749557]
[1625714211791,1.77157582,33199.0,33198.0,1.02134557]
[1625714211937,0.057,33199.0,33198.0,4.31734761]
[1625714213131,0.74333617,33199.0,33198.0,3.08103882]
[1625714213864,0.057,33199.0,33198.0,3.08103882]
[1625714214163,0.057,33199.0,33198.0,4.3173003]
[1625714214539,0.057,33199.0,33198.0,5.73002784]
[1625714215293,0.057,33199.0,33198.0,4.3173003]
[1625714215514,0.057,33199.0,33198.0,5.73007156]
[1625714216190,0.057,33199.0,33198.0,4.3173003]
[1625714216939,0.057,33199.0,33198.0,3.3173003]
[1625714217240,0.057,33199.0,33198.0,3.3163003]
[1625714217840,0.057,33199.0,33198.0,4.3163003]
[1625714219041,0.057,33199.0,33198.0,3.3163003]
[1625714219793,0.057,33199.0,33198.0,2.08003882]
[1625714220245,0.057,33199.0,33198.0,3.31632825]
[1625714220545,0.057,33199.0,33198.0,3.08003882]
[1625714220845,0.057,33199.0,33198.0,4.31632609]
[1625714220996,0.057,33199.0,33198.0,3.31632609]
[1625714221220,0.057,33199.0,33198.0,4.31632609]
[1625714221594,0.057,33199.0,33198.0,3.31632609]
[1625714221745,0.48115088,33200.0,33198.0,4.31632609]
[1625714221912,0.48115088,33200.0,33199.0,3.00232628]
[1625714222216,0.48115088,33200.0,33199.0,4.00232628]
[1625714222574,0.48115088,33200.0,33199.0,5.41511148]
[1625714222946,0.48115088,33200.0,33199.0,5.65568692]
[1625714223547,0.24057544,33200.0,33199.0,4.74508692]
[1625714223698,0.24057544,33200.0,33199.0,5.24508692]
[1625714223848,0.24057544,33200.0,33199.0,7.74477661]
[1625714224005,0.24157544,33204.0,33199.0,7.25740532]
[1625714224147,0.24157544,33204.0,33199.0,7.24477661]
[1625714224297,0.24157544,33204.0,33203.0,5.41368862]
[1625714225049,0.24157544,33204.0,33203.0,5.65426406]
[1625714225950,0.24157544,33204.0,33203.0,5.74436406]
[1625714226401,0.24057544,33204.0,33203.0,5.74436406]
[1625714227153,0.24057544,33204.0,33203.0,7.33290745]
[1625714227679,0.001,33209.0,33203.0,7.34552927]
[1625714227832,0.001,33209.0,33203.0,7.33290745]
[1625714227982,0.001,33209.0,33208.0,5.4122975]
[1625714228132,0.001,33209.0,33208.0,5.6315775]
[1625714229032,0.001,33209.0,33208.0,5.87215294]
[1625714230232,0.001,33209.0,33208.0,5.96115294]
[1625714230385,0.001,33209.0,33208.0,5.87215294]
[1625714230533,0.001,33209.0,33208.0,6.37215294]
[1625714231517,0.001,33209.0,33208.0,6.46125294]
[1625714232417,0.001,33209.0,33208.0,6.9906231]
[1625714232894,0.001,33209.0,33208.0,8.57867674]
[1625714233162,0.001,33209.0,33208.0,8.59129494]
[1625714233333,0.24257544,33214.0,33208.0,8.59129494]
[1625714233462,0.17957544,33214.0,33208.0,8.59129494]
[1625714233613,0.86103867,33218.0,33210.0,1.0]
[1625714233614,0.82761411,33218.0,33210.0,1.0]
[1625714233764,0.82761411,33218.0,33217.0,4.2119]
[1625714233765,0.31102534,33218.0,33217.0,4.2119]
[1625714233914,0.31102534,33218.0,33217.0,4.55554]
[1625714234063,0.057,33218.0,33217.0,6.84774382]
[1625714234214,1.26198545,33218.0,33217.0,6.08451011]
[1625714234666,0.57344692,33218.0,33217.0,6.78982906]
[1625714234968,0.057,33218.0,33217.0,6.78982906]
[1625714235118,0.057,33218.0,33217.0,7.27097994]
[1625714235419,0.76010089,33219.0,33217.0,7.27097994]
[1625714235572,0.24357544,33219.0,33218.0,0.52868128]
[1625714235719,0.24357544,33219.0,33218.0,1.52868128]
[1625714235869,0.7598509,33219.0,33218.0,1.52868128]
[1625714236395,0.7598509,33219.0,33218.0,1.0]
[1625714237525,0.24357544,33219.0,33218.0,1.0]
[1625714238048,0.76051442,33219.0,33218.0,1.0]
[1625714238349,0.75951442,33219.0,33218.0,1.0]
[1625714238875,0.24257544,33219.0,33218.0,1.0]
[1625714239024,0.002,33219.0,33218.0,1.0]
[1625714240083,0.51856048,33219.0,33218.0,1.0]
[1625714240450,0.51856048,33219.0,33217.0,4.69305088]
[1625714240752,0.51856048,33219.0,33218.0,1.0]
[1625714241276,0.002,33219.0,33218.0,1.0]
[1625714241425,0.002,33219.0,33217.0,4.69305088]
[1625714241876,0.002,33219.0,33217.0,5.69305088]
[1625714242175,0.002,33219.0,33217.0,4.69305088]
[1625714242476,0.51826427,33219.0,33217.0,4.69305088]
[1625714242626,0.057,33218.0,33217.0,4.69305088]
[1625714243076,0.057,33218.0,33217.0,5.69305088]
[1625714244880,0.002,33219.0,33217.0,4.69305088]
[1625714245030,0.002,33219.0,33217.0,6.71495299]
[1625714245179,0.002,33219.0,33217.0,7.71495299]
[1625714245330,0.002,33219.0,33218.0,2.28644641]
[1625714245481,0.002,33219.0,33218.0,3.28644641]
[1625714245631,0.002,33219.0,33218.0,3.78644641]
[1625714245942,1.14232644,33226.0,33218.0,3.78644641]
[1625714246087,0.51722211,33228.0,33218.0,5.01753124]
[1625714246232,0.40002211,33228.0,33225.0,1.0]
[1625714246381,0.22737203,33229.0,33225.0,1.71535]
[1625714246532,0.24057544,33231.0,33227.0,1.0]
[1625714246683,0.24057544,33231.0,33228.0,0.5]
[1625714246834,0.24057544,33231.0,33228.0,2.55507764]
[1625714246982,0.24057544,33233.0,33228.0,2.55507764]
[1625714247133,1.03595588,33236.0,33228.0,2.55507764]
[1625714247134,0.057,33236.0,33230.0,1.0]
[1625714247285,0.24057544,33239.0,33235.0,0.72172632]
[1625714247435,0.24057544,33239.0,33236.0,0.557]
[1625714247732,0.24057544,33242.0,33236.0,0.557]
[1625714247883,0.24057544,33242.0,33238.0,1.0]
[1625714248033,1.20885653,33245.0,33239.0,0.557]
[1625714248182,1.20885653,33245.0,33241.0,1.0]
[1625714248332,1.20885653,33245.0,33235.0,4.82801632]
[1625714248333,1.20885653,33245.0,33244.0,1.0]
[1625714248560,1.20925415,33246.0,33244.0,1.83074]
[1625714248858,1.2107732,33248.0,33245.0,1.0]
[1625714249008,1.21107082,33250.0,33246.0,0.057]
[1625714249158,1.21107082,33250.0,33246.0,1.057]
[1625714249308,1.21107082,33250.0,33249.0,0.72172632]
[1625714249457,1.21107082,33250.0,33249.0,1.72172632]
[1625714249608,1.20889888,33251.0,33249.0,1.72172632]
[1625714249911,1.20889888,33251.0,33249.0,0.72172632]
[1625714250061,1.20889888,33251.0,33250.0,1.0]
[1625714250215,1.20889888,33251.0,33250.0,4.8611]
[1625714250363,1.20889888,33251.0,33250.0,3.8611]
[1625714250512,1.20889888,33251.0,33250.0,4.8611]
[1625714250812,1.20920118,33252.0,33250.0,4.8611]
[1625714250964,1.20920118,33252.0,33250.0,4.3611]
[1625714251117,1.21048292,33256.0,33250.0,4.3611]
[1625714251262,1.21048292,33256.0,33255.0,0.48115088]
[1625714251414,1.20833424,33257.0,33255.0,0.71095088]
[1625714251564,1.20819546,33256.0,33255.0,0.71095088]
[1625714251713,1.20819546,33256.0,33255.0,1.71095088]
[1625714251864,1.20860545,33257.0,33255.0,1.71095088]
[1625714252165,1.20885992,33256.0,33255.0,0.71095088]
[1625714252315,1.20907171,33257.0,33255.0,0.71095088]
[1625714252464,1.20907171,33257.0,33255.0,1.71095088]
[1625714252765,1.20907171,33257.0,33256.0,1.0]
[1625714253216,1.20907171,33257.0,33255.0,1.48115088]
[1625714253519,1.44949171,33257.0,33251.0,1.0]
[1625714253681,1.44949171,33257.0,33236.0,0.9565]
[1625714253816,1.20607149,33254.0,33235.0,4.8392]
[1625714253968,1.20584878,33253.0,33235.0,4.8392]
[1625714254265,1.20584878,33253.0,33236.0,0.057]
[1625714255316,0.24057544,33249.0,33248.0,0.24057544]
[1625714255466,0.24057544,33249.0,33248.0,0.47256544]
[1625714257270,0.48115088,33249.0,33245.0,0.24057544]
[1625714257419,0.69342088,33249.0,33245.0,0.24057544]
[1625714258921,0.69342088,33249.0,33242.0,0.24057544]
[1625714259373,0.24057544,33243.0,33242.0,0.24057544]
[1625714265456,0.24057544,33243.0,33242.0,0.24157544]
[1625714268012,0.24057544,33243.0,33242.0,0.29857544]
[1625714268235,0.48215088,33249.0,33242.0,0.29857544]
[1625714268387,0.48215088,33249.0,33242.0,0.56826544]
[1625714269439,0.48215088,33249.0,33248.0,0.24057544]
[1625714270639,0.48215088,33249.0,33248.0,0.29757544]
[1625714274091,0.48215088,33249.0,33248.0,0.24057544]
[1625714277324,0.48215088,33249.0,33248.0,0.24157544]
[1625714277473,0.48115088,33249.0,33248.0,0.24157544]
[1625714279652,0.48115088,33249.0,33248.0,0.29857544]
[1625714281005,0.48115088,33249.0,33248.0,0.24157544]
[1625714288215,0.48115088,33249.0,33248.0,4.07217544]
[1625714289943,0.48115088,33249.0,33248.0,4.40495544]
[1625714293700,0.48115088,33249.0,33248.0,4.55095544]
[1625714294002,0.06117544,33249.0,33248.0,4.46195544]
[1625714294150,0.08639998,33250.0,33248.0,4.46195544]
[1625714294752,0.25926173,33251.0,33248.0,4.46195544]
[1625714295507,0.25926173,33251.0,33250.0,0.24057544]
[1625714297005,0.24157544,33255.0,33250.0,0.24057544]
[1625714297006,0.17292895,33252.0,33250.0,0.24057544]
[1625714297307,0.17302722,33251.0,33250.0,0.24057544]
[1625714298583,0.17302722,33251.0,33250.0,0.29757544]
[1625714299486,1.03907782,33253.0,33250.0,0.29757544]
[1625714299636,1.03907782,33253.0,33252.0,0.24057544]
[1625714301214,1.03907782,33253.0,33252.0,0.47227544]
[1625714301512,2.25294647,33253.0,33252.0,0.47227544]
[1625714302563,0.24157544,33255.0,33252.0,0.47227544]
[1625714302713,2.25597251,33253.0,33252.0,0.47227544]
[1625714302864,2.25597251,33253.0,33252.0,0.24057544]
[1625714303465,3.64555087,33253.0,33252.0,0.24057544]
[1625714304669,3.64555087,33253.0,33252.0,0.29757544]
[1625714304820,2.25597251,33253.0,33252.0,0.473797]
[1625714305270,2.25597251,33253.0,33252.0,0.474797]
[1625714305648,2.25597251,33253.0,33252.0,0.29857544]
[1625714305649,3.64924707,33253.0,33252.0,0.29857544]
[1625714305944,2.25597251,33253.0,33252.0,1.35749443]
[1625714306470,2.95287303,33253.0,33252.0,2.06343236]
[1625714308124,2.95287303,33253.0,33252.0,2.36394236]
[1625714308427,1.73813195,33253.0,33252.0,3.59967494]
[1625714308725,1.73813195,33253.0,33252.0,5.01191592]
[1625714308877,0.69690052,33253.0,33252.0,5.01191592]
[1625714310075,0.69812443,33254.0,33252.0,5.01191592]
[1625714310378,0.17471321,33254.0,33253.0,4.41117593]
[1625714310526,0.17471321,33254.0,33253.0,4.46817593]
[1625714312105,0.17480743,33255.0,33253.0,4.46817593]
[1625714312482,0.17480743,33255.0,33254.0,4.41073132]
[1625714312631,0.17480743,33255.0,33254.0,4.46773132]
[1625714313685,0.10880743,33255.0,33254.0,4.46773132]
[1625714313833,0.12274746,33256.0,33254.0,4.46773132]
[1625714313984,0.24057544,33258.0,33255.0,4.40802425]
[1625714314133,0.24057544,33258.0,33256.0,0.057]
[1625714314284,0.24057544,33258.0,33257.0,4.40796782]
[1625714314433,0.24057544,33258.0,33257.0,4.46496782]
[1625714314661,0.24057544,33258.0,33257.0,3.05441812]
[1625714315111,0.001,33259.0,33257.0,3.05441812]
[1625714315411,0.001,33259.0,33258.0,2.9956745]
[1625714315561,0.001,33259.0,33258.0,3.0526745]
[1625714315709,0.001,33259.0,33258.0,3.53382538]
[1625714316013,0.67787154,33260.0,33258.0,3.53382538]
[1625714316162,0.67787154,33260.0,33259.0,1.23351038]
[1625714316311,0.67787154,33260.0,33259.0,2.64566499]
[1625714316462,1.04724968,33262.0,33259.0,1.41215461]
[1625714316763,1.04724968,33262.0,33260.0,1.05681674]
[1625714316916,1.04724968,33262.0,33261.0,0.057]
[1625714317514,1.04747008,33263.0,33261.0,0.057]
[1625714317664,1.04747008,33263.0,33262.0,0.24057544]
[1625714317814,1.22193064,33264.0,33262.0,0.29757544]
[1625714318114,1.04743173,33263.0,33262.0,0.29757544]
[1625714318567,1.04743173,33263.0,33262.0,4.47837544]
[1625714320825,2.55164754,33263.0,33262.0,4.47837544]
[1625714323671,2.55164754,33263.0,33262.0,0.29757544]
[1625714324722,2.55164754,33263.0,33262.0,0.24057544]
[1625714324874,3.94624662,33263.0,33262.0,0.24057544]
[1625714325328,3.94624662,33263.0,33258.0,0.24057544]
[1625714325626,2.26534115,33259.0,33256.0,0.001]
[1625714325776,2.98706747,33259.0,33256.0,0.001]
[1625714325927,2.26422827,33257.0,33256.0,0.001]
[1625714326379,2.26422827,33257.0,33252.0,1.05953953]
[1625714326527,3.65763289,33257.0,33252.0,0.003]
[1625714326827,1.04515408,33253.0,33252.0,0.003]
[1625714326977,1.38201408,33253.0,33252.0,0.003]
[1625714327127,2.60082401,33253.0,33252.0,0.003]
[1625714327727,3.08197489,33253.0,33252.0,0.003]
[1625714328177,1.86316496,33253.0,33252.0,0.003]
[1625714328477,3.08569043,33253.0,33252.0,0.003]
[1625714331108,1.86316496,33253.0,33252.0,0.003]
[1625714332458,3.0873484,33253.0,33252.0,0.003]
[1625714332758,2.04219432,33253.0,33252.0,0.003]
[1625714332909,3.0927729,33253.0,33252.0,0.003]
[1625714335313,3.0927729,33253.0,33252.0,0.001]
[1625714336588,3.6180611,33253.0,33252.0,0.001]
[1625714337039,3.6180611,33253.0,33252.0,0.5296684]
[1625714338015,3.6180611,33253.0,33252.0,0.001]
[1625714340268,3.6180611,33253.0,33252.0,0.52973537]
[1625714340418,3.2812011,33253.0,33252.0,0.79518537]
[1625714340569,2.05701766,33253.0,33252.0,0.79518537]
[1625714340724,2.05701766,33253.0,33252.0,0.85218537]
[1625714340870,1.00643908,33253.0,33252.0,1.90958908]
[1625714341021,1.00643908,33253.0,33252.0,3.14317856]
[1625714341321,0.48115088,33253.0,33252.0,3.14317856]
[1625714341470,0.48115088,33253.0,33252.0,4.55288972]
[1625714341621,0.48115088,33253.0,33252.0,4.49588972]
[1625714342069,0.48115088,33253.0,33252.0,3.08617856]
[1625714342521,1.00668499,33253.0,33252.0,3.14317856]
[1625714342822,0.48115088,33253.0,33252.0,4.55293273]
[1625714343722,0.48115088,33253.0,33252.0,6.13873924]
[1625714343870,0.48115088,33253.0,33252.0,6.37931468]
[1625714345529,0.48115088,33253.0,33252.0,6.39189112]
[1625714346123,0.48115088,33259.0,33252.0,8.15293626]
[1625714346271,0.24057544,33259.0,33252.0,8.15293626]
[1625714346422,0.24057544,33259.0,33258.0,5.81130373]
[1625714346572,0.24057544,33259.0,33258.0,5.95860373]
[1625714347773,0.24057544,33263.0,33258.0,6.43975461]
[1625714347923,0.24057544,33263.0,33262.0,4.5085]
[1625714348073,0.24057544,33263.0,33262.0,9.0073612]
[1625714348373,0.22187544,33263.0,33262.0,9.0073612]
[1625714349874,0.22187544,33263.0,33262.0,9.24793664]
[1625714350928,0.14647544,33263.0,33262.0,9.24793664]
[1625714351228,0.11597544,33263.0,33262.0,9.24793664]
[1625714351978,0.11597544,33263.0,33262.0,10.83187953]
[1625714352281,0.11597544,33263.0,33262.0,9.24793664]
[1625714352429,0.24057544,33266.0,33262.0,9.24793664]
[1625714352579,0.24057544,33266.0,33263.0,0.0908]
[1625714352729,0.52713164,33270.0,33265.0,4.22169743]
[1625714352879,0.52713164,33270.0,33266.0,0.057]
[1625714353329,0.52713164,33270.0,33269.0,0.52771829]
[1625714353479,0.52713164,33270.0,33269.0,0.88748829]
[1625714353629,0.52737489,33271.0,33269.0,1.94298964]
[1625714353781,0.35162765,33270.0,33269.0,1.94298964]
[1625714354382,0.35162765,33270.0,33269.0,1.88598964]
[1625714354534,0.35162765,33270.0,33269.0,0.52771829]
[1625714354836,0.52675708,33270.0,33269.0,0.35168655]
[1625714354983,1.58019148,33270.0,33268.0,0.35169883]
[1625714355286,0.52674504,33269.0,33267.0,1.11983173]
[1625714355508,0.52674191,33268.0,33267.0,0.59228349]
[1625714355885,0.76731735,33268.0,33267.0,0.59228349]
[1625714356035,0.76731735,33268.0,33267.0,1.11987361]
[1625714356185,0.76731735,33268.0,33267.0,0.59228349]
[1625714356788,0.59206915,33268.0,33267.0,0.76806259]
[1625714357539,0.76786934,33268.0,33267.0,1.11978416]
[1625714357688,1.11952011,33268.0,33267.0,0.82506259]
[1625714357987,0.59222621,33268.0,33267.0,0.82506259]
[1625714358663,0.76761198,33268.0,33267.0,0.29757544]
[1625714358812,0.76761198,33268.0,33267.0,0.24057544]
[1625714358963,1.82141411,33268.0,33267.0,0.24057544]
[1625714362115,3.05070734,33268.0,33267.0,0.24057544]
[1625714362416,1.82141411,33268.0,33267.0,0.24057544]
[1625714362715,3.05079339,33268.0,33267.0,0.24057544]
[1625714362868,4.45523883,33268.0,33266.0,0.001]
[1625714363166,2.80842538,33267.0,33266.0,0.001]
[1625714363316,3.12180538,33267.0,33266.0,0.001]
[1625714363616,4.52616115,33267.0,33266.0,0.001]
[1625714363917,4.76673659,33267.0,33266.0,0.001]
[1625714364366,3.36238082,33267.0,33266.0,0.001]
[1625714365717,4.76671254,33267.0,33266.0,0.001]
[1625714366318,4.76671254,33267.0,33262.0,0.24257544]
[1625714366467,6.34557582,33267.0,33262.0,0.24257544]
[1625714366768,2.8069337,33263.0,33262.0,0.24257544]
[1625714367369,4.20982216,33263.0,33262.0,0.24257544]
[1625714367969,4.4503976,33263.0,33262.0,0.24257544]
[1625714370223,3.04750914,33263.0,33262.0,0.24257544]
[1625714370973,1.81953046,33263.0,33262.0,0.24257544]
[1625714371274,1.81953046,33263.0,33262.0,0.59460123]
[1625714372701,1.81953046,33263.0,33262.0,1.1226262]
[1625714373002,1.81953046,33263.0,33262.0,0.59460123]
[1625714375405,1.81953046,33263.0,33262.0,0.24157544]
[1625714375556,3.04792295,33263.0,33262.0,0.24157544]
[1625714376302,3.74990134,33263.0,33262.0,0.24157544]
[1625714376978,2.52150885,33263.0,33262.0,0.24157544]
[1625714377278,3.74940262,33263.0,33262.0,0.24157544]
[1625714377428,2.52150885,33263.0,33262.0,0.24157544]
[1625714377953,2.28093341,33263.0,33262.0,0.001]
[1625714378404,3.50870204,33263.0,33262.0,0.001]
[1625714378555,4.23042836,33263.0,33262.0,0.001]
[1625714379006,5.63200094,33263.0,33262.0,0.001]
[1625714379155,7.20767626,33263.0,33262.0,0.001]
[1625714380584,8.20767626,33263.0,33262.0,0.001]
[1625714383664,7.20767626,33263.0,33262.0,0.001]
[1625714384416,7.20767626,33263.0,33252.0,2.392e-05]
[1625714384569,0.72172632,33253.0,33252.0,2.392e-05]
[1625714384726,0.98852632,33253.0,33252.0,2.392e-05]
[1625714384867,0.98852632,33253.0,33250.0,1.05601895]
[1625714385017,4.3871,33252.0,33250.0,1.05601895]
[1625714385845,4.3871,33252.0,33249.0,1.29660457]
[1625714385996,4.3871,33252.0,33249.0,1.05602913]
[1625714386144,4.3871,33252.0,33248.0,1.06030744]
[1625714386145,5.43714477,33252.0,33248.0,1.06030744]
[1625714386595,0.24057544,33249.0,33248.0,1.06030744]
[1625714386896,0.24057544,33249.0,33248.0,0.00421538]
[1625714387047,0.24057544,33249.0,33248.0,1.06026323]
[1625714387873,0.45922544,33249.0,33248.0,1.06026323]
[1625714388322,0.45922544,33249.0,33248.0,0.00421538]
[1625714389975,0.45922544,33249.0,33244.0,1.23206535]
[1625714390127,1.0,33248.0,33244.0,1.23206535]
[1625714390277,1.0,33248.0,33241.0,1.23700004]
[1625714390426,1.0,33245.0,33241.0,0.005]
[1625714390576,0.72172632,33242.0,33241.0,0.005]
[1625714390726,0.94505632,33242.0,33241.0,0.005]
[1625714391556,0.94505632,33242.0,33230.0,1.58442265]
[1625714391557,4.56018184,33242.0,33232.0,1.23245779]
[1625714391703,4.467,33237.0,33232.0,1.23245779]
[1625714391854,4.467,33237.0,33231.0,1.40852319]
[1625714391855,4.467,33237.0,33231.0,1.23249427]
[1625714392079,4.467,33237.0,33230.0,1.23253898]
[1625714392378,1.0,33233.0,33230.0,1.23253898]
[1625714392528,1.33224,33233.0,33227.0,1.23107834]
[1625714392678,1.33224,33233.0,33225.0,1.23108157]
[1625714392679,1.72172632,33231.0,33225.0,1.23108157]
[1625714392979,1.0,33228.0,33223.0,1.23116791]
[1625714393430,1.0,33224.0,33222.0,1.23123672]
[1625714393580,1.27457,33224.0,33221.0,1.23129232]
[1625714393729,0.27457,33224.0,33221.0,1.23129232]
[1625714394630,0.27457,33224.0,33219.0,1.40719122]
[1625714394631,0.72172632,33222.0,33219.0,1.22929173]
[1625714394780,0.72172632,33222.0,33218.0,1.22930283]
[1625714395231,0.72172632,33222.0,33218.0,1.09370283]
[1625714395382,1.0,33221.0,33218.0,1.09370283]
[1625714395532,0.72172632,33222.0,33213.0,1.40504388]
[1625714395832,1.0,33219.0,33210.0,1.40514356]
[1625714396132,1.0,33219.0,33208.0,1.46220694]
[1625714396282,1.0,33219.0,33208.0,0.057]
[1625714396435,1.0,33219.0,33218.0,0.003]
[1625714396582,5.13467544,33219.0,33218.0,0.003]
[1625714396883,6.13467544,33219.0,33218.0,0.003]
[1625714398158,5.13467544,33219.0,33218.0,0.003]
[1625714398609,6.13467544,33219.0,33218.0,0.003]
[1625714399060,5.13467544,33219.0,33218.0,0.003]
[1625714399661,6.13467544,33219.0,33218.0,0.003]
[1625714400261,1.24057544,33219.0,33218.0,0.003]
[1625714400412,0.24057544,33219.0,33218.0,0.30375]
[1625714400561,0.24057544,33219.0,33218.0,0.36075]
[1625714400936,0.24057544,33219.0,33218.0,4.96395]
[1625714405292,0.24057544,33219.0,33218.0,4.96095]
[1625714407697,0.24057544,33222.0,33218.0,4.96095]
[1625714407999,0.24057544,33222.0,33218.0,6.35592509]
[1625714408220,0.24057544,33222.0,33219.0,1.39489135]
[1625714408371,0.24057544,33222.0,33220.0,0.057]
[1625714408671,0.001,33223.0,33221.0,0.24057544]
[1625714408819,0.001,33223.0,33222.0,0.057]
[1625714408970,0.24057544,33227.0,33222.0,1.45193388]
[1625714410172,0.24057544,33227.0,33223.0,1.39487595]
[1625714410325,0.24057544,33227.0,33224.0,0.057]
[1625714410624,0.002,33228.0,33226.0,0.24057544]
[1625714410777,0.003,33233.0,33227.0,0.057]
[1625714411375,0.002,33229.0,33227.0,0.057]
[1625714411830,0.002,33229.0,33227.0,1.45204488]
[1625714412727,0.002,33229.0,33228.0,0.48115088]
[1625714412878,0.002,33229.0,33228.0,0.53815088]
[1625714413028,0.002,33229.0,33228.0,1.03815088]
[1625714413178,0.002,33229.0,33228.0,2.43377572]
[1625714413478,0.002,33229.0,33228.0,1.93377572]
[1625714414456,0.002,33229.0,33228.0,2.02377572]
[1625714415208,0.002,33229.0,33228.0,1.93377572]
[1625714415509,0.002,33229.0,33228.0,0.53815088]
[1625714415957,0.002,33229.0,33228.0,1.75994935]
[1625714416407,0.002,33229.0,33228.0,0.53815088]
[1625714417312,0.001,33234.0,33228.0,0.53815088]
[1625714417909,0.001,33234.0,33233.0,4.9462]
[1625714418060,0.001,33234.0,33233.0,5.0032]
[1625714418809,0.24157544,33234.0,33233.0,5.24377544]
[1625714419260,0.24157544,33234.0,33233.0,5.33517544]
[1625714420016,0.24157544,33234.0,33233.0,5.24377544]
[1625714420163,0.001,33234.0,33233.0,5.24377544]
[1625714420837,0.001,33234.0,33233.0,5.48435088]
[1625714420988,0.001,33234.0,33233.0,5.57465088]
[1625714421139,0.001,33234.0,33233.0,5.48435088]
[1625714421592,0.001,33234.0,33233.0,5.38435088]
[1625714423468,0.23631,33234.0,33233.0,5.38435088]
[1625714425049,0.001,33234.0,33233.0,5.38435088]
[1625714426323,0.24057544,33238.0,33233.0,5.38435088]
[1625714426476,0.24057544,33238.0,33233.0,5.66034088]
[1625714426924,0.24057544,33238.0,33237.0,0.24057544]
[1625714427077,0.24057544,33238.0,33237.0,0.29757544]
[1625714428877,0.001,33239.0,33237.0,0.29757544]
[1625714429629,0.001,33239.0,33238.0,1.04995446]
[1625714429780,0.001,33239.0,33238.0,1.10695446]
[1625714430756,0.001,33239.0,33238.0,2.33222264]
[1625714430906,0.001,33239.0,33238.0,2.57279808]
[1625714431506,0.001,33239.0,33238.0,1.3475299]
[1625714432031,0.001,33239.0,33238.0,0.29757544]
[1625714435338,0.24057544,33243.0,33238.0,0.29757544]
[1625714435801,0.24057544,33243.0,33238.0,1.34887937]
[1625714436913,0.24057544,33243.0,33242.0,0.24057544]
[1625714437065,0.24057544,33243.0,33242.0,0.29757544]
[1625714440897,0.001,33244.0,33242.0,1.35002367]
[1625714441045,0.001,33244.0,33243.0,0.24057544]
[1625714441194,0.001,33244.0,33243.0,0.29757544]
[1625714442622,0.001,33244.0,33243.0,4.75397544]
[1625714444426,0.001,33244.0,33243.0,5.80678531]
[1625714444727,0.001,33244.0,33243.0,6.5086514]
[1625714445026,0.001,33244.0,33243.0,5.45584153]
[1625714445476,0.001,33244.0,33243.0,4.75397544]
[1625714445777,0.001,33244.0,33243.0,5.4558847]
[1625714447128,0.001,33244.0,33243.0,4.75397544]
[1625714447281,0.24057544,33247.0,33243.0,4.75397544]
[1625714448478,0.24057544,33247.0,33243.0,5.02836544]
[1625714448631,0.24057544,33247.0,33243.0,5.73041524]
[1625714449007,0.24057544,33247.0,33246.0,0.24057544]
[1625714449154,0.24057544,33247.0,33246.0,0.29757544]
[1625714450358,0.24057544,33247.0,33246.0,0.24057544]
[1625714456739,0.24057544,33247.0,33246.0,0.29757544]
[1625714457040,0.24057544,33247.0,33246.0,0.24057544]
[1625714457790,0.24057544,33247.0,33246.0,0.29757544]
[1625714458390,0.24057544,33247.0,33246.0,1.00111505]
[1625714459217,0.24057544,33247.0,33246.0,2.05638932]
[1625714459517,0.70117378,33251.0,33246.0,2.05638932]
[1625714459668,0.70117378,33251.0,33248.0,0.70348316]
[1625714459968,0.70117378,33251.0,33249.0,0.057]
[1625714460193,0.70257557,33252.0,33249.0,0.76048486]
[1625714460492,1.05479833,33252.0,33251.0,0.70448201]